Cogmind - Beta 17.1 @@@ ROGUE MODE // 2026.08.30 @ 23:24:23 Player: Skergy Result: Destroyed by CY-POF(x) with Makeshift Spear Performance ------------- Evolutions (0) 0 Regions Visited (3) 600 Robots Destroyed (27) 135 Value Destroyed (704) 704 Prototype IDs (1) 20 Alien Tech Used (0) 0 Bonus (5600) 5600 TOTAL SCORE: 7059 Bonus ------- Prayed to X0-1V1 5000 Major X0-1V1 Interference 600 Cogmind --------- Core Integrity 0/250 Matter 284/300 Energy 1027/1050 System Corruption 0% Temperature Warm (103) Movement Treading (160) Location -7/Scraptown Parts ------- > --- POWER (1) -------- Ion Engine > --- PROPULSION (2) --- Spiked Treads Spiked Treads > --- UTILITY (2) ------ Medium Storage Unit X0-1V1's Piety Tracker > --- WEAPON (3) ------- Subdweller Laser Subdweller Beam Cannon Dirty Datajack > --- INVENTORY (10) --- Aluminum Leg Aluminum Leg Wheel Improved Terrain Scanner Seismic Detector Makeshift ECM Suite Makeshift Thermal Plating Shotgun Shotgun Grenade Launcher Peak State ------------ > --- POWER ------------ Ion Engine > --- PROPULSION ------- Spiked Treads Spiked Treads > --- UTILITY ---------- Medium Storage Unit X0-1V1's Piety Tracker > --- WEAPON ----------- Subdweller Laser Subdweller Beam Cannon Dirty Datajack > --- INVENTORY -------- Aluminum Leg Aluminum Leg Wheel Improved Terrain Scanner Seismic Detector Makeshift Thermal Plating Shotgun Shotgun Grenade Launcher [Rating: 30] Favorites ----------- Power Light Ion Engine Engine Light Ion Engine Propulsion Light Treads Treads Light Treads Leg Aluminum Leg Utility Medium Storage Unit Device X0-1V1's Piety Tracker Storage Medium Storage Unit Weapon Subdweller Beam Cannon Energy Gun Subdweller Laser Energy Cannon Subdweller Beam Cannon Ballistic Gun Assault Rifle Ballistic Cannon Battle Cannon Launcher Grenade Launcher Special Weapon Mining Laser Special Melee Weapon Dirty Datajack Build | -11 -10 -10 -7 ------- Run | Yrd Mat Sub Scr Slots Evolved . | . . . . Power . | . . . . Propulsion . | . . . . Utility . | . . . . Weapon . | . . . . Parts Attached 23 | 8 3 12 . Power 2 | 1 . 1 . Engine 2 | 1 . 1 . Core . | . . . . Reactor . | . . . . Propulsion 6 | 2 . 4 . Treads 4 | 2 . 2 . Leg 2 | . . 2 . Wheel . | . . . . Hover . | . . . . Flight . | . . . . Utility 5 | 3 2 . . Device 3 | 2 1 . . Storage 2 | 1 1 . . Processor . | . . . . Hackware . | . . . . Protection . | . . . . Artifact . | . . . . Weapon 10 | 2 1 7 . Energy Gun 1 | . . 1 . Energy Cannon 2 | . . 2 . Ballistic Gun 2 | 2 . . . Ballistic Cannon 1 | . . 1 . Launcher 2 | . 1 1 . Special Weapon 1 | . . 1 . Impact Weapon . | . . . . Slashing Weapon . | . . . . Piercing Weapon . | . . . . Special Melee Weapon 1 | . . 1 . Unidentified Prototypes 1 | . 1 . . Corrupted Parts 1 | . . 1 . System Corruption 5 | . . 5 . Parts Lost 8 | . . 8 . Power 1 | . . 1 . Propulsion 2 | . . 2 . Utility . | . . . . Weapon 5 | . . 5 . Highest Loss Streak 3 | . . 3 . To Critical Strikes . | . . . . Average Backups 8 | 4 7 8 9 Power . | . 1 . . Propulsion 2 | 1 2 2 3 Utility 2 | . 1 3 3 Weapon 2 | 1 2 2 3 Tool/Special . | . . . . Unused Backups 7 | 1 . 1 5 Power . | . . . . Propulsion 1 | . . . 1 Utility 3 | 1 . . 2 Weapon 3 | . . 1 2 Tool/Special . | . . . . Average Slot Usage (%) 92 | . 98 92 100 Engine 7 | . 14 6 12 Treads 19 | . 28 19 25 Leg 4 | . . 5 . Device 12 | . 12 12 12 Storage 12 | . 14 12 12 Energy Gun 4 | . . 3 12 Energy Cannon 10 | . . 10 12 Ballistic Gun 4 | . 21 3 . Ballistic Cannon 4 | . . 4 . Launcher 6 | . 6 7 . Special Melee Weapon 2 | . . 2 12 Peak Build Rating 30 | 9 20 30 30 Average Rating 21 | 5 9 23 30 On Entrance 14 | . 7 20 30 Avg Prop Armor Cover (%) 6 | . . 6 . Naked Turns . | . . . . Heaviest Build 29 | 12 19 29 29 Greatest Support 40 | 40 40 40 40 Greatest Overweight (x) 2 | . . 2 . Average Overweight (x) . | . . . . Largest Inventory Capacity 10 | 8 10 10 10 Average Capacity 9 | 7 8 10 10 Most Carried 10 | 6 10 10 10 Average Carried 8 | 4 7 8 9 Final Capacity 10 | 8 10 10 10 Final Carried 10 | 6 10 9 10 Class Distribution -------------------- 60% | Mutant 20% | Gunner 18% | Bomber Dominant Class ---------------- Mutant | -10/Materials Mutant | -10/Subcaves Mutant | -7/Scraptown Resources | -11 -10 -10 -7 ----------- Run | Yrd Mat Sub Scr Matter Collected 839 | 309 . 483 47 Remotely . | . . . . Salvage Created 770 | 42 134 594 . Parts 59 | 11 9 39 . Haulers Intercepted 1 | . 1 . . Recyclers Shooed . | . . . . Parts Field Recycled . | . . . . Retrieved Matter . | . . . . Parts Self-Destructed 17 | . . 17 . Prevented . | . . . . Parts Restored . | . . . . Kills | -11 -10 -10 -7 ------- Run | Yrd Mat Sub Scr Combat Hostiles Destroyed 22 | . 3 19 . Guns 5 | . . 5 . Cannons 5 | . . 5 . AOE 11 | . 3 8 . Classes Destroyed 7 | 1 3 3 . Tunneler 3 | 3 . . . Hauler 1 | . 1 . . Recycler 1 | . 1 . . Swarmer 6 | . 3 3 . Grunt 5 | . . 5 . Sentry 1 | . . 1 . Subdweller 10 | . . 10 . Best Kill Streak 8 | 1 5 8 . Combat Bots Only 8 | . 3 8 . Max Kills in Single Turn 4 | 1 4 2 . Gunslinging . | . . . . Exploded 3 | . 3 2 . Melee . | . . . . Uniques/NPCs Destroyed . | . . . . Combat | -11 -10 -10 -7 -------- Run | Yrd Mat Sub Scr Hostile Shots Fired 85 | . 8 73 4 Missed 21 | . 3 17 1 Hits 64 | . 5 56 3 Melee 3 | . . . 3 Projectile 61 | . 5 56 . Critical Strikes 2 | . . 2 . Damage Taken 1216 | . 43 1094 79 Core 250 | . 7 189 54 Absorbed by Shields . | . . . . Core Remaining (%) 100 | 100 . . . Volleys Fired 82 | 12 4 64 2 Largest 3 | 2 2 3 2 Hottest 163 | 40 50 163 140 Shots Fired 139 | 24 8 105 2 Gun 65 | 24 7 32 2 Cannon 57 | . . 57 . Launcher 14 | . 1 13 . Special 3 | . . 3 . Kinetic 87 | 24 7 56 . Thermal 38 | . . 36 2 Explosive 14 | . 1 13 . Electromagnetic . | . . . . Robot Hit Streak 13 | 4 5 13 3 Robot Miss Streak 4 | 1 1 4 . Penetration Max . | . . . . Secondary Targets . | . . . . Shots Hit Robots 75 | 17 4 51 3 Core Hits 38 | 4 6 28 . Critical Kills 2 | . . 2 . Critical Parts Destroyed . | . . . . Critical Strikes 2 | . . 2 . Meltdown 1 | . . 1 . Destroy 1 | . . 1 . Melee Attacks 1 | . . . 1 Impact . | . . . . Slashing . | . . . . Piercing 1 | . . . 1 Sneak Attacks . | . . . . Combat Hostiles . | . . . . Follow-up Attacks . | . . . . Damage Inflicted 1725 | 166 174 1347 38 Guns 540 | 166 47 289 38 Cannons 367 | . . 367 . Explosions 818 | . 127 691 . Melee . | . . . . Ramming . | . . . . Kinetic 697 | 166 47 484 . Thermal 210 | . . 172 38 Explosive 818 | . 127 691 . Electromagnetic . | . . . . Impact . | . . . . Slashing . | . . . . Piercing . | . . . . Highest Corruption 8 | . . 8 . Average Corruption 2 | . . 2 . Corruption Purged . | . . . . Corruption Blocked . | . . . . Effects 20 | . . 20 . Message Errors 5 | . . 5 . Matter Fused 4 | . . 4 . Heat Flow Errors 1 | . . 1 . Energy Discharges 6 | . . 6 . Data Loss (minor) 3 | . . 3 . Data Loss (major) 1 | . . 1 . Overload Shots . | . . . . Overflow Damage 30 | . . 30 . Projectiles 8 | . . 8 . Explosions 22 | . . 22 . Melee . | . . . . Knockbacks 4 | . . 4 . Impact . | . . . . Kinetic 4 | . . 4 . Secondary . | . . . . Self-Inflicted Damage 83 | . . 83 . Shots 4 | . . 4 . Rammed . | . . . . Targets Rammed . | . . . . Kicked . | . . . . Crushed . | . . . . Highest Temperature 265 | . . 265 103 Average Temperature 71 | . . 72 64 Received Heat Transfer 234 | . . 234 . Siege Activations . | . . . . Martial Activations . | . . . . Shielding Activations . | . . . . Robots Disrupted . | . . . . Combat Hostiles . | . . . . Robots Corrupted . | . . . . Combat Hostiles . | . . . . Parts Fried . | . . . . Impact Corruptions . | . . . . Robots Melted 1 | . . 1 . Combat Hostiles 1 | . . 1 . Parts Melted 1 | . . 1 . Heat Transferred 346 | . . 296 50 Parts Sabotaged . | . . . . Parts Stolen . | . . . . Parts Stripped . | . . . . Power Chain Reactions . | . . . . Alert | -11 -10 -10 -7 ------- Run | Yrd Mat Sub Scr Maximum Alert Level . | . . . . Low Security (%) 100 | 100 100 . . Level 1 . | . . . . Level 2 . | . . . . Level 3 . | . . . . Level 4 . | . . . . Level 5 . | . . . . High Security . | . . . . Max Security . | . . . . Peak Influence 81 | 5 81 . . Initial . | . . . . Average 15 | 1 38 . . Influence Increases 293 | 15 88 190 . Destroy 0b10 Robot/C 240 | . 60 180 . Destroy 0b10 Robot/NC 25 | 15 10 . . Destroy Leader 22 | . 12 10 . Destroy Structure 6 | . 6 . . Influence Decreases 293 | 15 27 251 . Entered New Map 30 | . . 30 . Time Decay 223 | 15 27 181 . Lost Part 40 | . . 40 . Squads Dispatched . | . . . . Investigation . | . . . . Extermination . | . . . . Reinforcement . | . . . . Assault . | . . . . Garrison . | . . . . Intercept . | . . . . Searches Triggered . | . . . . Construction Impeded . | . . . . Haulers Reinforced . | . . . . Active Scanning Responses . | . . . . Cargo Convoy Interrupts . | . . . . Stealth | -11 -10 -10 -7 --------- Run | Yrd Mat Sub Scr Distress Signals . | . . . . Communications Jammed . | . . . . Distress Signals . | . . . . Times Spotted 22 | . 3 18 1 Peak Tracking Total 5 | . 3 5 1 Tactical Retreats . | . . . . Traps | -11 -10 -10 -7 ------- Run | Yrd Mat Sub Scr Traps Triggered . | . . . . Indirectly . | . . . . Trap Hack Attempts . | . . . . Triggered . | . . . . Disarmed . | . . . . Reprogrammed . | . . . . Reused . | . . . . Traps Extracted . | . . . . Installed . | . . . . Triggered . | . . . . Machines | -11 -10 -10 -7 ---------- Run | Yrd Mat Sub Scr Machines Disabled . | . . . . Max in Single Turn . | . . . . Machines Repaired . | . . . . Machines Dismantled . | . . . . Machines Sabotaged . | . . . . Overloaded Fab Kills . | . . . . Hacking | -11 -10 -10 -7 --------- Run | Yrd Mat Sub Scr Machines Accessed 1 | . . 1 . Terminals . | . . . . Fabricators . | . . . . Repair Stations . | . . . . Recycling Units . | . . . . Scanalyzers . | . . . . Garrison Access . | . . . . Total Hacks 4 | . . 4 . Successful 4 | . . 4 . Failed . | . . . . Catastrophic . | . . . . Database Lockouts . | . . . . Manual 1 | . 1 . . Terminals . | . . . . Fabricators . | . . . . Repair Stations . | . . . . Recycling Units . | . . . . Scanalyzers . | . . . . Garrison Access . | . . . . Terminal Hacks 4 | . . 4 . Record 4 | . . 4 . Fabricator Hacks . | . . . . Repair Station Hacks . | . . . . Recycling Unit Hacks . | . . . . Scanalyzer . | . . . . Garrison Access Hacks . | . . . . Unauthorized Hacks . | . . . . Terminals . | . . . . Fabricators . | . . . . Repair Stations . | . . . . Recycling Units . | . . . . Scanalyzers . | . . . . Garrison Access . | . . . . Data Cores Recovered . | . . . . Used . | . . . . Hacking Detections . | . . . . Full Trace Events . | . . . . Feedback Events . | . . . . Feedback Blocked . | . . . . Robot Schematics Acquired . | . . . . Robots Built . | . . . . Authchips . | . . . . Time . | . . . . Total Robot Build Rating . | . . . . Part Schematics Acquired . | . . . . Parts Built . | . . . . Authchips . | . . . . Time . | . . . . Total Part Build Rating . | . . . . Part Studies Acquired . | . . . . Parts Repaired . | . . . . Time . | . . . . Parts Recycled . | . . . . Recycled Matter . | . . . . Retrieved Matter . | . . . . Retrieved Components . | . . . . Parts Scanalyzed . | . . . . Part Schematics Acquired . | . . . . Parts Damaged . | . . . . Bothacking | -11 -10 -10 -7 ------------ Run | Yrd Mat Sub Scr Used RIF Installer . | . . . . Robots Hacked . | . . . . Non-combat . | . . . . Combat . | . . . . Robot Hacks Applied . | . . . . Relay Couplers Released . | . . . . Fabnet Peak Effective % . | . . . . Robots Rewired . | . . . . Allies Hacked . | . . . . Hacks Repelled . | . . . . Allies | -11 -10 -10 -7 -------- Run | Yrd Mat Sub Scr Total Allies 1 | . . . 1 Largest Group 1 | . . . 1 Highest-Rated Group 464 | . . . 464 Highest-Rated Ally 464 | . . . 464 Total Orders . | . . . . Ally Attacks . | . . . . Total Damage . | . . . . Kills . | . . . . Allies Corrupted . | . . . . Allies Melted . | . . . . X0-1V1 Amusement Gains 6 | . 6 . . Average Entertainment 11 | . 6 11 5 Good Acts 7 | . . 7 . Bad Acts 11 | . . 11 . Intel | -11 -10 -10 -7 ------- Run | Yrd Mat Sub Scr Active Infowar (turns) 170 | 89 81 . . Terrain 2 | 2 . . . Seismic 168 | 87 81 . . Robot Analysis Total . | . . . . Derelict Logs Recovered 1 | . . 1 . Drone Launches . | . . . . Drone Recoveries . | . . . . Exploration | -11 -10 -10 -7 ------------- Run | Yrd Mat Sub Scr Turns Passed 1813 | 147 95 1503 68 Spaces Moved 823 | 61 44 679 39 Core 4 | 4 . . . Treads 765 | 57 44 625 39 Legs 54 | . . 54 . Wheels . | . . . . Hover . | . . . . Flight . | . . . . Fastest Speed 50 | 50 160 160 160 Average Speed 183 | 152 160 189 160 Slowest Speed 260 | 160 160 260 160 Overloaded Moves . | . . . . Propulsion Burnouts . | . . . . Robots Hopped . | . . . . Potential Cave-ins 3 | . . 3 . Cave-ins Triggered . | . . . . Exploration Rate (%) 18 | 3 12 55 5 Regions Visited 3 Branch Regions 2 Pre-discovered Areas 1 | . . 1 . Known Exits Taken . | . . . . Unknown Exits Taken 3 | 1 1 1 . Scrap Searched 2 | . . 1 1 Spaces Dug . | . . . . Terrain Destroyed 64 | . 5 59 . Melee . | . . . . Projectile . | . . . . AOE 64 | . 5 59 . Terrain Rammed . | . . . . Walls Destroyed . | . . . . Machines Disabled . | . . . . Actions | -11 -10 -10 -7 --------- Run | Yrd Mat Sub Scr Total 975 | 89 60 783 43 Wait 28 | . 7 21 . Move 820 | 60 43 678 39 Hop . | . . . . Pick Up 15 | 7 2 5 1 Fast Attach 11 | 7 1 3 . Attach 8 | . . 8 . Detach 3 | . 1 2 . Swap 5 | 2 2 1 . Drop 2 | 1 . 1 . Fire 82 | 12 4 64 2 Melee 1 | . . . 1 Ram . | . . . . Kick . | . . . . Crush . | . . . . Escape Stasis . | . . . . Rewire . | . . . . Trap . | . . . . Miscellaneous . | . . . . Route ------- -11/Scrapyard -10/Materials (discovered 2 exits: [*Min] / *Sub) -10/Subcaves (discovered 3 exits: [*Mat] / Rec / [*Scr]) -7/Scraptown History --------- Turn | Location | Event 4 | -11/Scrapyard | Discovered new exit (range 16) 148 | -11/Scrapyard | Entered Materials 189 | -10/Materials | Discovered new exit (range 8) 210 | -10/Materials | Discovered new exit (range 4) 229 | -10/Materials | Prayed at D.C.S.S. Altar Unit 243 | -10/Materials | Entered Subcaves 244 | -10/Subcaves | Approached by a straggling Scientist 290 | -10/Subcaves | Discovered new exit (range 9) 308 | -10/Subcaves | Build established: Mutant 403 | -10/Subcaves | X0-1V1 activates XOMVISION 690 | -10/Subcaves | Weapon slot count permanently improved by X0-1V1 (+1) 693 | -10/Subcaves | X0-1V1 sent hostile G-34 Mercenary (x5) 695 | -10/Subcaves | Core integrity fell below 50% 728 | -10/Subcaves | Destroyed 8 combat bots 738 | -10/Subcaves | Lost 3 parts (1p1n1w) 951 | -10/Subcaves | A swath of the cavern ceiling suddenly collapsed 984 | -10/Subcaves | Identified exit to Recycling 984 | -10/Subcaves | X0-1V1 revealed exit location to -7/Recycling 1025 | -10/Subcaves | Build established: Gunner 1357 | -10/Subcaves | Scientist uncovered a shortcut to Scraptown 1420 | -10/Subcaves | Build established: Bomber 1488 | -10/Subcaves | Shifting Twisted Machinery released Piercing Trap 1489 | -10/Subcaves | Shifting Twisted Machinery released Spk. Treads 1514 | -10/Subcaves | Learned location of Zion (-6) 1532 | -10/Subcaves | Visited Clippyterm 1537 | -10/Subcaves | Learned Factory emergency access door positions 1730 | -10/Subcaves | Build established: Mutant 1746 | -10/Subcaves | Entered Scraptown 1746 | -7/Scraptown | System corruption cleaned by C-Scrubber 1807 | -7/Scraptown | X0-1V1 brought Wyrm Statue to life 1807 | -7/Scraptown | Attacked by Scraptown defenders 1808 | -7/Scraptown | Core integrity fell below 20% 1814 | -7/Scraptown | Destroyed by CY-POF(x) with Makeshift Spear Last Messages --------------- our home will be considered a hostile act, tread lightly and respect boundaries. 01769_ Searching scrap... 01769_ Found Launcher Guidance Computer. 01769_ Found Mak. ECM Suite. 01769_ Found Cooling System. 01769_ Found 47 Matter. 01770_ Acquired 47 matter. 01772_ Acquired Mak. ECM Suite. 01807_ A towering statue of a majestic wyrm. 01807_ X0-1V1 animates Wyrm Statue. 01807_ ANNOUNCEMENT: Intruder alert! Defend Scraptown! 01808_ CY-POF(x): "Death by animated Wyrm Statue is not how I thought my cycle would be going." 01810_ Sub. Beam Cannon shoots sparks and powers down. 01813_ Splicing CY-POF(x)... 01813_ CY-POF(x) system unaffected. 01814_ X0-1V1 bursts into laughter! Map ----- +----------------------------------------------------+ | ?????????????????????????????????????????????????? | | ?????????????????????????????????????????????????? | | ?????????????????????????????????????????????????? | | ????????????????????#????????????????????????????? | | ??????????????????? #????????????????????????????? | | ????????#####?????? #????????????????????????????? | | ????????#"""#????? #????????????????????????????? | | ????????#" "#????? #????????????????????????????? | | ????????# #???? #????????????????????????????? | | ????????# ##### #????????????????????????????? | | ????????# ##???????????????????????????? | | ????????# #???????????????????????????? | | ????????# ##???###?????????????????????? | | ????????##### ### ##????""""????????????????????? | | ????????????# #???#?????" ""????????????????????? | | ???????###### ######???"" "#???????????????????? | | ???????#""""" """""#??#" ""#???????????????????? | | ???????#""" " " "#??#"" ""#?????"?????????????? | | ???????#" !! "#??#"" ""#???? "?????????????? | | ???????#""""" """""#??#"" ""#??? "?????????????? | | ???????###### ######??#" ""#??" "?????????????? | | ?############ #########"" ""##"" ""##???????????? | | h ???????? | | ???????? | | ###"""" """"######"""" """""######"""????????????? | | ??#""" """?????#" @ "#????????????????????? | | ??#""" ""?????#" DDx "#????????????????????? | | ??#"""" "?????#" DD "#????????????????????? | | ???""""" ??????#"""""$ "#????????????????????? | | ???""""""""??????#""""""""""#????????????????????? | | ?????######??????############????????????????????? | | | | | | | | | | | | | | | | | | | | | | | | | | | | | | | | | | | | | | | +----------------------------------------------------+ Best States ------------- Heat Dissipation 25 Energy Generation 10 Energy Capacity 1050 Matter Stores 297 Matter Capacity 300 Sight Range 21 Terrain Scan Density 10 Evasion (%) 40 Recoil Reduction 2 Item Schematics ----------------- None Robot Schematics ------------------ None Fabricated ------------ Nothing Repaired ---------- Nothing Studied --------- None Alien Tech Used ----------------- None Achievements -------------- None Challenges ------------ None Game ------ Seed PortableHybridSlamshotty Manual? 0 Play Time 00:15:19 Cumulative 156.9 hours Start 2026.08.30 @ 23:06:47 End 2026.08.30 @ 23:24:23 Sessions 1 Manual Loads 0 Difficulty Rogue Special Mode None Game No. 166 Rogue 166 Adventurer 0 Explorer 0 Win Type - Total 5 Types 4/0/1/0/0/0/0/0/0/0 Lore% 71 Gallery% 59 Achievement% 46 Wizard Run 0 Options --------- Layout 2 ASCII 0 Keyboard 1 Movement Vi Keybinds 0 Fullscreen 1 Font 24/Terminus Map View 50x44 Zoom Use 0% Tactical HUD 1 Map Filters NONE Filters NONE Steam 1 RUN: 4df28b82-f813-4af6-8198-aa8759b3d690